bitfinex/quotes_BTCUSD_20250102
["timestamp","ask_amount","ask_price","bid_price","bid_amount"]
[1735778670964,0.00121992,95264.0,95263.0,0.16823794]
[1735778671959,0.00121992,95264.0,95263.0,0.09143794]
[1735778672143,0.00121992,95264.0,95263.0,0.0812203]
[1735778672337,0.00121992,95264.0,95263.0,0.09143794]
[1735778672535,0.00121992,95264.0,95263.0,0.0812203]
[1735778672740,0.00021992,95264.0,95263.0,0.09043794]
[1735778672961,0.00021992,95264.0,95263.0,0.0802203]
[1735778673171,0.00021992,95264.0,95263.0,0.09143794]
[1735778673337,0.00021992,95264.0,95263.0,0.0812203]
[1735778673723,0.10420624,95264.0,95263.0,0.0802203]
[1735778673868,0.10920624,95264.0,95263.0,0.0572203]
[1735778674072,0.00521992,95264.0,95263.0,0.0572203]
[1735778674292,0.10420624,95264.0,95263.0,0.0572203]
[1735778674486,0.10420624,95264.0,95263.0,0.0802203]
[1735778674688,0.21814424,95264.0,95263.0,0.09043794]
[1735778675031,0.11020624,95264.0,95263.0,0.09043794]
[1735778675215,0.00221992,95264.0,95263.0,0.09043794]
[1735778675422,0.01121992,95264.0,95263.0,0.09043794]
[1735778675796,0.00221992,95264.0,95263.0,0.09043794]
[1735778675994,0.00821992,95264.0,95263.0,0.09043794]
[1735778676397,0.00621992,95264.0,95263.0,0.09043794]
[1735778676844,0.01121992,95264.0,95263.0,0.09043794]
[1735778677240,0.00621992,95264.0,95263.0,0.09043794]
[1735778677445,0.21514092,95264.0,95263.0,0.09043794]
[1735778677624,0.13406492,95264.0,95263.0,0.09043794]
[1735778678001,0.10364092,95264.0,95263.0,0.09043794]
[1735778678124,0.00221992,95264.0,95263.0,0.09043794]
[1735778678330,0.00621992,95264.0,95263.0,0.09043794]
[1735778678923,0.00221992,95264.0,95263.0,0.09043794]
[1735778679324,0.00621992,95264.0,95263.0,0.09043794]
[1735778680172,0.00421992,95264.0,95263.0,0.09043794]
[1735778680615,0.27554792,95264.0,95263.0,0.09043794]
[1735778680814,0.00221992,95264.0,95263.0,0.09043794]
[1735778681047,0.00421992,95264.0,95263.0,0.09043794]
[1735778681182,0.00521992,95264.0,95263.0,0.09043794]
[1735778681808,0.28895992,95264.0,95263.0,0.09043794]
[1735778681993,0.00321992,95264.0,95263.0,0.09043794]
[1735778682393,0.00221992,95264.0,95263.0,0.09043794]
[1735778682693,0.00621992,95264.0,95263.0,0.09043794]
[1735778683407,0.00421992,95264.0,95263.0,0.09043794]
[1735778683619,0.00621992,95264.0,95263.0,0.09043794]
[1735778683820,0.00221992,95264.0,95263.0,0.09043794]
[1735778684196,0.00421992,95264.0,95263.0,0.09043794]
[1735778684401,0.00621992,95264.0,95263.0,0.09043794]
[1735778686505,0.00421992,95264.0,95263.0,0.09043794]
[1735778686701,0.00521992,95264.0,95263.0,0.09043794]
[1735778686846,0.00121992,95264.0,95263.0,0.09043794]
[1735778687054,0.01667266,95264.0,95263.0,0.09043794]
[1735778687305,0.01867266,95264.0,95263.0,0.09043794]
[1735778687893,0.02067266,95264.0,95263.0,0.09043794]
[1735778688052,0.01667266,95264.0,95263.0,0.09043794]
[1735778688261,0.01767266,95264.0,95263.0,0.09043794]
[1735778688686,0.01767266,95264.0,95263.0,0.0802203]
[1735778689046,0.02167266,95264.0,95263.0,0.0802203]
[1735778689627,0.02067266,95264.0,95263.0,0.0802203]
[1735778689831,0.02267266,95264.0,95263.0,0.0802203]
[1735778690235,0.01667266,95264.0,95263.0,0.0802203]
[1735778690434,0.01667266,95264.0,95263.0,0.09043794]
[1735778690638,0.02467266,95264.0,95263.0,0.09043794]
[1735778691136,0.02367266,95264.0,95263.0,0.09043794]
[1735778691521,0.02467266,95264.0,95263.0,0.09043794]
[1735778691956,0.01767266,95264.0,95263.0,0.09043794]
[1735778692747,0.01667266,95264.0,95263.0,0.09043794]
[1735778692920,0.01767266,95264.0,95263.0,0.09043794]
[1735778696182,0.01767266,95264.0,95263.0,0.17223794]
[1735778696405,0.01767266,95264.0,95263.0,0.21913794]
[1735778697164,0.01667266,95264.0,95263.0,0.21913794]
[1735778697573,0.01767266,95264.0,95263.0,0.21913794]
[1735778698847,0.01667266,95264.0,95263.0,0.21913794]
[1735778699191,0.01667266,95264.0,95263.0,0.61913794]
[1735778700307,0.22661466,95264.0,95263.0,0.61913794]
[1735778700449,0.22661466,95264.0,95263.0,0.46743794]
[1735778701234,0.22661466,95264.0,95263.0,0.06743794]
[1735778701620,0.22661466,95264.0,95263.0,0.09043794]
[1735778701850,0.22861466,95264.0,95263.0,0.09043794]
[1735778702052,0.22661466,95264.0,95263.0,0.09043794]
[1735778702335,0.22961466,95264.0,95263.0,0.09043794]
[1735778702566,0.22861466,95264.0,95263.0,0.09043794]
[1735778702714,0.01867266,95264.0,95263.0,0.09043794]
[1735778702923,0.01967266,95264.0,95263.0,0.09043794]
[1735778703916,0.00321992,95264.0,95263.0,0.09043794]
[1735778705626,0.00121992,95264.0,95263.0,0.09043794]
[1735778705833,0.00021992,95264.0,95263.0,0.09043794]
[1735778706007,0.00321992,95264.0,95263.0,0.09043794]
[1735778706640,0.00221992,95264.0,95263.0,0.09043794]
[1735778707522,0.00021992,95264.0,95263.0,0.09143794]
[1735778707894,0.21016192,95264.0,95263.0,0.09143794]
[1735778708102,0.21016192,95264.0,95263.0,0.06843794]
[1735778708782,0.21016192,95264.0,95263.0,0.0802203]
[1735778709194,0.21116192,95264.0,95263.0,0.0802203]
[1735778709700,0.21216192,95264.0,95263.0,0.09043794]
[1735778710385,0.62123224,95264.0,95263.0,0.06743794]
[1735778710549,0.72246377,95264.0,95263.0,0.06743794]
[1735778710815,0.82223224,95264.0,95263.0,0.06743794]
[1735778710991,0.35,95262.0,95261.0,0.36246294]
[1735778711226,0.1,95252.0,95231.0,0.4000853]
[1735778711431,0.359982,95246.0,95231.0,0.4000853]
[1735778711641,0.88758732,95246.0,95231.0,0.4000853]
[1735778711819,0.90615832,95246.0,95231.0,0.4000853]
[1735778712111,1.05612832,95246.0,95231.0,0.4000853]
[1735778712320,1.05612832,95246.0,95245.0,0.56716]
[1735778712524,1.15612832,95246.0,95245.0,0.546162]
[1735778712726,1.15612832,95246.0,95245.0,0.41116021]
[1735778712929,1.15989894,95246.0,95245.0,0.41116021]
[1735778713556,1.31489894,95246.0,95245.0,0.41116021]
[1735778713730,1.31489894,95246.0,95245.0,0.3409626]
[1735778713935,1.31489894,95246.0,95245.0,0.29563697]
[1735778714141,1.31489894,95246.0,95245.0,0.28365276]
[1735778715000,1.31889894,95246.0,95245.0,0.17866276]
[1735778715208,1.31212832,95246.0,95245.0,0.17866276]
[1735778715503,1.30612832,95246.0,95245.0,0.17866276]
[1735778715711,1.31953283,95246.0,95245.0,0.09466076]
[1735778715908,1.31953283,95246.0,95245.0,0.07365876]
[1735778716106,1.33599445,95246.0,95245.0,0.07365876]
[1735778716775,0.2,95233.0,95232.0,0.03145076]
[1735778716907,4.20100332,95233.0,95232.0,0.01044876]
[1735778717107,2.69383732,95233.0,95232.0,0.01044876]
[1735778717304,2.69383732,95233.0,95231.0,8.53e-05]
[1735778717305,0.35,95232.0,95231.0,8.53e-05]
[1735778717510,3.00560432,95232.0,95231.0,8.53e-05]
[1735778717735,3.00560432,95232.0,95231.0,3e-07]
[1735778717909,0.45398632,95232.0,95231.0,1.2e-07]
[1735778718481,0.560037,95221.0,95220.0,1.2e-07]
[1735778718699,0.66402332,95221.0,95220.0,1.2e-07]
[1735778719770,0.67202332,95221.0,95220.0,1.2e-07]
[1735778719978,0.58102332,95221.0,95220.0,1.2e-07]
[1735778720187,0.68102332,95221.0,95220.0,1.2e-07]
[1735778720358,0.67202332,95221.0,95220.0,1.2e-07]
[1735778720777,0.68102332,95221.0,95220.0,1.2e-07]
[1735778721369,0.67302332,95221.0,95220.0,1.2e-07]
[1735778721749,0.67202332,95221.0,95220.0,1.2e-07]
[1735778722155,0.68102332,95221.0,95220.0,1.2e-07]
[1735778722576,0.67202332,95221.0,95220.0,1.2e-07]
[1735778722780,0.68102332,95221.0,95220.0,1.2e-07]
[1735778724596,1.18102332,95221.0,95220.0,1.2e-07]
[1735778725773,1.1974891,95221.0,95220.0,1.2e-07]
[1735778726786,1.1974891,95221.0,95220.0,8.552e-05]
[1735778727322,2.8422641,95221.0,95220.0,8.552e-05]
[1735778727565,3.9433171,95221.0,95220.0,8.552e-05]
[1735778728095,3.8736221,95221.0,95220.0,8.552e-05]
[1735778728302,3.75715632,95221.0,95220.0,8.552e-05]
[1735778728494,3.67058132,95221.0,95220.0,8.552e-05]
[1735778729314,3.49855332,95221.0,95220.0,8.552e-05]
[1735778729513,3.49855332,95221.0,95220.0,0.52518552]
[1735778729954,2.74687132,95221.0,95220.0,0.52518552]
[1735778730135,2.74687132,95221.0,95220.0,0.52214223]
[1735778730546,2.74687132,95221.0,95220.0,0.56414223]
[1735778730547,1.96614832,95221.0,95220.0,0.56414223]
[1735778730746,1.96614832,95221.0,95220.0,0.57621485]
[1735778730946,1.74518932,95221.0,95220.0,0.59921485]
[1735778731149,1.04915232,95221.0,95220.0,0.59921485]
[1735778731568,1.19915232,95221.0,95220.0,0.59921485]
[1735778731916,1.19115232,95221.0,95220.0,0.59921485]
[1735778732129,1.18715232,95221.0,95220.0,0.59921485]
[1735778732339,1.28715232,95221.0,95220.0,0.57621485]
[1735778732566,1.40479914,95221.0,95220.0,0.47119485]
[1735778732774,1.42612127,95221.0,95220.0,0.36617485]
[1735778733194,1.39615232,95221.0,95220.0,0.35410223]
[1735778733484,1.57187271,95221.0,95220.0,0.35410223]
[1735778733688,1.38615232,95221.0,95220.0,0.35410223]
[1735778733888,1.38615232,95221.0,95220.0,0.33309823]
[1735778734096,1.39515232,95221.0,95220.0,0.33309823]
[1735778734288,1.39115232,95221.0,95220.0,0.33309823]
[1735778734499,1.40174237,95221.0,95220.0,0.24908223]
[1735778734711,1.42912127,95221.0,95220.0,0.22807823]
[1735778735077,1.42112127,95221.0,95220.0,0.18607023]
[1735778735272,1.43758639,95221.0,95220.0,0.14406223]
[1735778735493,1.43658639,95221.0,95220.0,0.14406223]
[1735778735634,1.44558639,95221.0,95220.0,0.12305823]
[1735778735836,1.43658639,95221.0,95220.0,0.06004623]
[1735778736020,1.43658639,95221.0,95220.0,0.03904223]
[1735778736221,1.44558639,95221.0,95220.0,0.03904223]
[1735778736876,1.43758639,95221.0,95220.0,2.3e-07]
[1735778737190,1.22745739,95221.0,95220.0,2.3e-07]
[1735778737399,1.22745739,95221.0,95196.0,0.023]
[1735778737400,0.36009,95197.0,95196.0,0.023]
[1735778737574,1.47608632,95197.0,95196.0,0.023]
[1735778737774,1.49396332,95197.0,95196.0,0.023]
[1735778737978,1.49396332,95197.0,95196.0,0.54823]
[1735778738176,1.36545132,95197.0,95196.0,0.54823]
[1735778738437,1.46545132,95197.0,95196.0,0.53738754]
[1735778738620,1.56594444,95197.0,95196.0,0.47436054]
[1735778738944,1.56594444,95197.0,95196.0,0.41133354]
[1735778739471,1.57294444,95197.0,95196.0,0.41133354]
[1735778739681,2.07294444,95197.0,95196.0,0.40383354]
[1735778739906,2.06594444,95197.0,95196.0,0.391676]
[1735778740111,2.07494444,95197.0,95196.0,0.38371541]
[1735778740525,2.07794444,95197.0,95196.0,0.38371541]
[1735778740948,2.07494444,95197.0,95196.0,0.38371541]
[1735778741157,2.08194444,95197.0,95196.0,0.38371541]
[1735778741764,1.56865544,95197.0,95196.0,0.46481541]
[1735778742024,1.66865544,95197.0,95196.0,0.47697295]
[1735778742332,1.66865544,95197.0,95196.0,0.39587295]
[1735778742470,1.66865544,95197.0,95196.0,0.38371541]
[1735778742927,1.6882475,95197.0,95196.0,0.27867041]
[1735778743149,1.69783325,95197.0,95196.0,0.27867041]
[1735778743596,1.69783325,95197.0,95196.0,0.25766041]
[1735778743830,1.75204081,95197.0,95196.0,0.17098145]
[1735778744062,1.76004081,95197.0,95196.0,0.17098145]
[1735778744296,1.76904081,95197.0,95196.0,0.17098145]
[1735778744531,1.27295481,95197.0,95196.0,0.17098145]
[1735778744966,1.27295481,95197.0,95196.0,0.14997145]
[1735778744967,3.88260381,95197.0,95196.0,0.14997145]
[1735778745207,4.78201881,95197.0,95196.0,0.06593145]
[1735778745449,3.39280085,95197.0,95196.0,0.06593145]
[1735778745676,2.92143121,95197.0,95196.0,0.06593145]
[1735778745905,2.93043121,95197.0,95196.0,0.06593145]
[1735778746136,2.91580801,95197.0,95196.0,0.06593145]
[1735778746378,2.86022365,95197.0,95196.0,0.06593145]
[1735778746634,0.35,95194.0,95193.0,8.5e-07]
[1735778746890,0.45398632,95194.0,95193.0,8.5e-07]
[1735778747136,0.45398632,95194.0,95178.0,0.0002]
[1735778747137,0.56013,95179.0,95178.0,8.5e-07]
[1735778747339,0.66411632,95179.0,95178.0,8.5e-07]
[1735778747873,0.68058774,95179.0,95178.0,8.5e-07]
[1735778748097,0.56411632,95179.0,95178.0,8.5e-07]
[1735778748271,0.31411632,95179.0,95178.0,8.5e-07]
[1735778748872,0.32111632,95179.0,95178.0,0.14960085]
[1735778749084,0.47111632,95179.0,95178.0,0.14960085]
[1735778749329,0.47111632,95179.0,95178.0,0.1618221]
[1735778749559,0.97111632,95179.0,95178.0,0.14960085]
[1735778749789,1.84632532,95179.0,95178.0,0.14960085]
[1735778750031,1.48415432,95179.0,95178.0,0.14960085]
[1735778750262,1.49115432,95179.0,95178.0,0.14960085]
[1735778750497,1.48215432,95179.0,95178.0,0.14960085]
[1735778750705,1.47515432,95179.0,95178.0,0.67493085]
[1735778751186,1.13527532,95179.0,95178.0,0.6871521]
[1735778751382,0.504,95179.0,95178.0,0.6871521]
[1735778751587,0.3719,95179.0,95178.0,0.6871521]
[1735778751991,0.3859,95179.0,95178.0,0.6871521]
[1735778752194,0.3769,95179.0,95178.0,0.6872375]
[1735778752639,0.514,95179.0,95178.0,0.6872375]
[1735778752819,0.505,95179.0,95178.0,0.6872375]
[1735778752972,0.505,95179.0,95178.0,0.67601625]
[1735778753169,0.505,95179.0,95178.0,0.6882375]
[1735778753597,0.5,95179.0,95178.0,0.6882375]
[1735778753779,0.5,95179.0,95178.0,0.67601625]
[1735778753996,0.502,95179.0,95178.0,0.6882375]
[1735778754381,0.5,95179.0,95178.0,0.6882375]
[1735778754577,0.5,95179.0,95178.0,0.67601625]
[1735778754874,0.5,95179.0,95178.0,0.6872375]
[1735778755274,0.507,95179.0,95178.0,0.6872375]
[1735778755476,0.5,95179.0,95178.0,0.79122382]
[1735778755630,0.3719,95179.0,95178.0,0.88514825]
[1735778755953,0.3719,95179.0,95178.0,0.6872375]
[1735778756368,0.3769,95179.0,95178.0,0.6872375]
[1735778756689,0.505,95179.0,95178.0,0.6872375]
[1735778757233,0.005,95179.0,95178.0,0.6872375]
[1735778757645,0.007,95179.0,95178.0,0.6872375]
[1735778757888,0.007,95179.0,95178.0,0.6882375]
[1735778758026,0.005,95179.0,95178.0,0.6882375]
[1735778758236,0.15049312,95197.0,95179.0,0.023]
[1735778758438,0.15,95195.0,95179.0,0.54833]
[1735778758679,0.15,95193.0,95181.0,0.023]
[1735778758879,0.15,95193.0,95183.0,0.023]
[1735778759107,0.15,95193.0,95186.0,0.023]
[1735778759253,0.00049312,95197.0,95186.0,0.54829]
[1735778759455,0.00049312,95197.0,95188.0,0.023]
[1735778759675,0.008,95195.0,95191.0,0.076]
[1735778759937,0.008,95195.0,95192.0,0.0696]
[1735778760113,0.008,95195.0,95192.0,0.60702169]
[1735778760900,0.00449312,95197.0,95192.0,0.60702169]
[1735778761093,0.00049312,95197.0,95196.0,0.023]
[1735778761325,0.00049312,95197.0,95196.0,0.62423]
[1735778761522,0.209987,95244.0,95212.0,0.1456]
[1735778761742,0.209987,95244.0,95212.0,0.67074]
[1735778761968,0.209987,95244.0,95213.0,8.5e-07]
[1735778762160,0.209987,95244.0,95214.0,0.023]
[1735778762461,0.0001708,95246.0,95219.0,0.076]
[1735778762663,0.0001708,95246.0,95222.0,0.023]
[1735778762868,0.0001708,95246.0,95230.0,0.12742123]
[1735778763092,0.0001708,95246.0,95237.0,0.023]
[1735778763306,0.0001708,95246.0,95239.0,0.023]
[1735778763456,0.0001708,95246.0,95239.0,0.548]
[1735778763692,0.0001708,95246.0,95241.0,0.023]
[1735778763873,0.0001708,95246.0,95241.0,0.54798]
[1735778764066,0.0001708,95246.0,95243.0,0.023]
[1735778764272,0.0001708,95246.0,95243.0,0.54797]
[1735778764453,0.0001708,95246.0,95245.0,0.023]
[1735778764646,0.0011708,95246.0,95245.0,0.54796]
[1735778764901,0.0031708,95246.0,95245.0,0.55994421]
[1735778765546,0.0051708,95246.0,95245.0,0.63554421]
[1735778765747,0.0001708,95246.0,95245.0,0.63554421]
[1735778767336,0.0011708,95246.0,95245.0,0.63554421]
[1735778767738,0.0001708,95246.0,95245.0,0.63554421]
[1735778767883,0.0001708,95246.0,95245.0,0.63654421]
[1735778768307,0.0001708,95246.0,95245.0,0.73953053]
[1735778768732,0.0001708,95246.0,95245.0,0.74053053]
[1735778768954,0.0011708,95246.0,95245.0,0.74053053]
[1735778769175,0.0001708,95246.0,95245.0,0.74053053]
[1735778769364,0.0001708,95246.0,95245.0,0.78983053]
[1735778769610,0.0011708,95246.0,95245.0,0.79083053]
[1735778769985,0.0011708,95246.0,95245.0,0.78983053]
[1735778770393,0.0011708,95246.0,95245.0,0.79183053]
[1735778770591,0.0011708,95246.0,95245.0,0.68784421]
[1735778770842,0.0001708,95246.0,95245.0,0.68684421]
[1735778771021,0.0011708,95246.0,95245.0,0.68784421]
[1735778771435,0.0011708,95246.0,95245.0,0.68484421]
[1735778771604,0.0021708,95246.0,95245.0,0.68584421]
[1735778771813,0.0021708,95246.0,95245.0,0.68784421]
[1735778772017,0.0001708,95246.0,95245.0,0.68684421]
[1735778772221,0.0011708,95246.0,95245.0,0.68784421]
[1735778772398,0.0011708,95246.0,95245.0,0.79183053]
[1735778772614,0.0011708,95246.0,95245.0,0.89581685]
[1735778773167,0.0011708,95246.0,95245.0,0.89381685]
[1735778773340,0.0011708,95246.0,95245.0,0.79183053]
[1735778773912,0.46489222,95250.0,95247.0,0.023]
[1735778774125,0.38679222,95250.0,95249.0,0.4979]
[1735778774332,0.0001706,95265.0,95263.0,0.18]
[1735778774551,0.0001708,95278.0,95272.0,0.123]
[1735778774765,0.0001708,95278.0,95272.0,0.99501422]
[1735778775045,0.0001708,95278.0,95272.0,1.09501422]
[1735778775218,4e-05,95316.0,95282.0,0.373]
[1735778775423,4e-05,95316.0,95296.0,0.1]
[1735778775633,4e-05,95316.0,95312.0,0.1]
[1735778775831,4e-05,95316.0,95312.0,0.27027042]
[1735778776033,0.00053373,95313.0,95312.0,0.53625491]
[1735778776291,0.00053373,95313.0,95312.0,0.61185491]
[1735778776494,0.00053373,95313.0,95312.0,1.18574491]
[1735778777052,0.00053373,95313.0,95312.0,1.14134491]
[1735778777278,0.00053373,95313.0,95312.0,1.18544491]
[1735778777843,0.00053373,95313.0,95312.0,1.19044491]
[1735778778203,0.00153373,95313.0,95312.0,1.59044491]
[1735778778334,0.00053373,95313.0,95312.0,1.58544491]
[1735778778535,0.00153373,95313.0,95312.0,1.59444491]
[1735778778742,0.00053373,95313.0,95312.0,1.54616081]
[1735778779193,0.00053373,95313.0,95312.0,1.14616081]
[1735778779813,0.00053373,95313.0,95312.0,1.14216081]
[1735778780249,0.00153373,95313.0,95312.0,1.55116081]
[1735778780451,0.00053373,95313.0,95312.0,1.54516081]
[1735778780648,0.15,95351.0,95328.0,0.023]
[1735778780860,0.15,95351.0,95330.0,0.023]
[1735778781055,0.15,95351.0,95332.0,0.023]
[1735778781256,0.15,95351.0,95332.0,0.54748]
[1735778781475,0.15,95351.0,95334.0,0.023]
[1735778781697,0.15,95351.0,95334.0,0.54747]
[1735778781830,0.15,95353.0,95336.0,0.023]
[1735778782042,0.15,95351.0,95336.0,0.54746]
[1735778782245,0.155,95351.0,95338.0,0.023]
[1735778782445,0.155,95351.0,95338.0,0.54745]
[1735778782720,0.15,95349.0,95339.0,0.0116522]
[1735778782921,0.209771,95342.0,95339.0,0.5360922]
[1735778783132,0.209757,95348.0,95339.0,0.5360922]
[1735778783338,0.15,95349.0,95340.0,0.023]
[1735778783538,0.15,95349.0,95341.0,0.01164514]
[1735778783742,0.15,95349.0,95342.0,0.023]
[1735778783938,0.00014808,95354.0,95342.0,0.54743]
[1735778784148,0.00014808,95354.0,95342.0,0.55907161]
[1735778784359,0.004,95348.0,95342.0,0.55907161]
[1735778784574,0.004,95348.0,95342.0,0.29545997]
[1735778784775,0.009,95349.0,95342.0,0.29545997]
[1735778785224,0.009,95349.0,95342.0,0.29645997]
[1735778785424,0.009,95349.0,95343.0,0.029646]
[1735778785659,0.009,95349.0,95343.0,0.77666808]
[1735778785901,0.009,95349.0,95344.0,0.01163455]
[1735778786453,0.00514808,95354.0,95344.0,0.96581455]
[1735778786847,0.009,95348.0,95345.0,0.023]
[1735778787071,0.00014808,95354.0,95345.0,0.97717]
[1735778787278,0.004,95349.0,95347.0,0.023]
[1735778787482,0.013,95349.0,95347.0,0.95416]
[1735778787718,0.013,95349.0,95348.0,0.00991807]
[1735778787859,0.009,95349.0,95348.0,0.98707807]
[1735778788066,0.009,95349.0,95348.0,1.07806439]
[1735778788348,0.00031868,95354.0,95348.0,1.06641138]
[1735778788560,0.00031868,95354.0,95349.0,0.10398632]
[1735778788763,0.00031868,95354.0,95349.0,0.95415085]
[1735778788967,0.00031868,95354.0,95349.0,0.95841238]
[1735778789369,0.00031868,95354.0,95350.0,0.0412]
[1735778789817,0.00031868,95354.0,95350.0,0.999598]
[1735778790500,0.01131868,95354.0,95350.0,1.081698]
[1735778790674,0.1497382,95373.0,95351.0,0.023]
[1735778790877,0.209705,95372.0,95351.0,0.98114]
[1735778791049,0.007,95354.0,95353.0,0.023]
[1735778791271,0.01,95354.0,95353.0,0.98113]
[1735778791436,0.01,95354.0,95353.0,0.98937742]
[1735778791842,0.007,95354.0,95353.0,0.98937742]
[1735778792066,0.009,95354.0,95353.0,0.98937742]
[1735778792306,0.009,95354.0,95353.0,1.12143912]
[1735778792512,0.002,95354.0,95353.0,1.41663912]
[1735778792653,4e-05,95377.0,95353.0,1.41663912]
[1735778792654,4e-05,95377.0,95376.0,0.314796]
[1735778793034,4e-05,95377.0,95376.0,1.47678232]
[1735778793246,4e-05,95377.0,95376.0,1.51814862]
[1735778793466,0.00058207,95410.0,95390.0,0.209665]
[1735778793643,0.00018791,95391.0,95390.0,1.43977132]
[1735778793875,0.00018791,95391.0,95390.0,1.44788827]
[1735778794850,0.00018791,95391.0,95390.0,1.18429829]
[1735778795308,0.00018791,95391.0,95390.0,1.39396329]
[1735778795519,0.00121699,95424.0,95390.0,1.39396329]
[1735778795520,0.00121699,95424.0,95408.0,0.1]
[1735778795724,0.00058191,95424.0,95423.0,0.123]
[1735778796053,0.00107484,95424.0,95423.0,1.48410438]
[1735778796265,0.00107484,95424.0,95423.0,0.96091073]
[1735778796475,0.00107484,95424.0,95423.0,1.17050373]
[1735778796686,0.00107484,95424.0,95423.0,1.01081073]
[1735778796894,0.00107484,95424.0,95423.0,0.90682441]
[1735778797074,0.00107484,95424.0,95423.0,0.85692441]
[1735778797300,0.00107484,95424.0,95423.0,0.96991073]
[1735778797630,0.00107484,95424.0,95423.0,1.00471073]
[1735778797837,0.00107484,95424.0,95423.0,1.10471073]
[1735778797838,0.00049293,95424.0,95423.0,1.10471073]
[1735778798053,0.00049293,95424.0,95423.0,1.11071073]
[1735778798257,0.00049293,95424.0,95423.0,1.01371073]
[1735778798663,0.00049293,95424.0,95423.0,0.90972441]
[1735778799011,0.00049293,95424.0,95423.0,1.17950373]
[1735778799417,0.00049293,95424.0,95423.0,1.19650373]
[1735778799618,0.00049293,95424.0,95423.0,1.20550373]
[1735778800116,0.00049293,95424.0,95423.0,1.19350373]
[1735778800332,0.00049293,95424.0,95423.0,1.19950373]
[1735778800557,0.00049293,95424.0,95423.0,1.30149005]
[1735778800690,0.00049293,95424.0,95423.0,1.19750373]
[1735778800886,0.00049293,95424.0,95423.0,1.20650373]
[1735778801098,0.00049293,95424.0,95423.0,0.86992441]
[1735778801929,0.00049293,95424.0,95423.0,0.86592441]
[1735778802488,0.00049293,95424.0,95423.0,1.05398742]
[1735778802696,0.00049293,95424.0,95423.0,0.98391073]
[1735778803316,0.00049293,95424.0,95423.0,0.98491073]
[1735778803524,0.00049293,95424.0,95423.0,0.98391073]
[1735778803930,0.00049293,95424.0,95423.0,0.99291073]
[1735778804137,0.00049293,95424.0,95423.0,0.99691073]
[1735778804343,0.00049293,95424.0,95423.0,0.86992441]
[1735778805172,0.00049293,95424.0,95423.0,0.86592441]
[1735778805621,0.00049293,95424.0,95423.0,0.85692441]
[1735778805831,0.00049293,95424.0,95423.0,0.86192441]
[1735778806033,0.00049293,95424.0,95423.0,0.85692441]
[1735778806517,0.00049293,95424.0,95423.0,0.88592441]
[1735778806919,0.00049293,95424.0,95423.0,0.87598778]
[1735778807188,0.00049293,95424.0,95423.0,0.87798778]
[1735778807367,0.00049293,95424.0,95423.0,0.93222384]
[1735778807781,0.00049293,95424.0,95423.0,0.9355103]
[1735778808176,0.00049293,95424.0,95423.0,0.9335103]
[1735778808383,0.00049293,95424.0,95423.0,0.91217424]
[1735778808589,0.1,95432.0,95423.0,0.92938627]
[1735778808794,0.00041294,95429.0,95423.0,0.92400641]
[1735778808970,0.1,95424.0,95423.0,0.92400641]
[1735778809154,0.1,95427.0,95423.0,0.90494304]
[1735778809360,0.15,95428.0,95423.0,0.90494304]
[1735778809581,0.1,95427.0,95423.0,0.91194304]
[1735778809782,0.1,95427.0,95423.0,0.89682441]
[1735778810007,0.00041294,95429.0,95423.0,0.88982441]
[1735778810162,0.00041294,95429.0,95426.0,0.023]
[1735778810364,0.00041294,95429.0,95426.0,1.19348632]
[1735778810365,0.001,95427.0,95426.0,1.19348632]
[1735778810791,0.00041294,95429.0,95428.0,0.023]
[1735778810994,0.00041294,95429.0,95428.0,1.0895]
[1735778811191,0.00141294,95429.0,95428.0,1.0895]
[1735778812045,0.00141294,95429.0,95428.0,1.10942987]
[1735778812455,0.00141294,95429.0,95428.0,1.0895]
[1735778813511,0.00041294,95429.0,95428.0,1.15336781]
[1735778813707,0.00041294,95429.0,95428.0,1.15636781]
[1735778813949,0.00041294,95429.0,95428.0,1.0995]
[1735778815145,0.00041294,95429.0,95428.0,1.13870699]
[1735778815491,0.00041294,95429.0,95428.0,1.15865576]
[1735778816073,0.00041294,95429.0,95428.0,1.13565576]
[1735778816270,0.00041294,95429.0,95428.0,1.15100841]
[1735778816884,0.00041294,95429.0,95428.0,1.14800841]
[1735778817089,0.00041294,95429.0,95428.0,1.58856305]
[1735778817293,0.00141294,95429.0,95428.0,1.48597127]
[1735778817491,0.00141294,95429.0,95428.0,1.42113546]
[1735778817913,0.00041294,95429.0,95428.0,1.42113546]
[1735778818738,0.00041294,95429.0,95428.0,1.08756714]
[1735778818883,0.00041294,95429.0,95428.0,1.07989454]
[1735778819509,0.00041294,95429.0,95428.0,0.81639702]
[1735778819709,0.00041294,95429.0,95428.0,0.81439702]
[1735778819912,0.00041294,95429.0,95428.0,0.83912658]
[1735778820140,0.00041294,95429.0,95428.0,0.84612658]
[1735778820360,0.00041294,95429.0,95428.0,0.82194224]
[1735778820607,0.00041294,95429.0,95428.0,0.85940862]
[1735778820816,0.00041294,95429.0,95428.0,0.85740862]
[1735778821047,0.00041294,95429.0,95428.0,0.96039494]
[1735778821254,0.00041294,95429.0,95428.0,1.07196109]
[1735778821464,0.00041294,95429.0,95428.0,1.08713303]
[1735778821880,0.00041294,95429.0,95428.0,1.08387443]
[1735778822095,0.00041294,95429.0,95428.0,1.10814878]
[1735778822731,0.00041294,95429.0,95428.0,1.12361695]
[1735778822938,0.00041294,95429.0,95428.0,1.0993426]
[1735778823133,0.00041294,95429.0,95428.0,1.10260089]
[1735778823384,4e-05,95434.0,95433.0,0.25]
[1735778823583,4e-05,95439.0,95438.0,0.1]
[1735778823795,4e-05,95439.0,95438.0,1.28185778]
[1735778824003,4e-05,95439.0,95438.0,2.65137746]
[1735778824205,4e-05,95439.0,95438.0,3.05993605]
[1735778824424,4e-05,95439.0,95438.0,3.06322267]
[1735778824628,4e-05,95439.0,95438.0,3.12768931]
[1735778824832,0.0001708,95447.0,95446.0,0.1]
[1735778825049,0.00058191,95464.0,95450.0,0.7924]
[1735778825368,0.00058191,95464.0,95450.0,2.22628632]
[1735778825571,0.00058191,95484.0,95450.0,2.33020439]
[1735778825774,0.00058191,95484.0,95450.0,2.44670539]
[1735778826385,0.00058191,95484.0,95451.0,0.8154]
[1735778826595,0.00058191,95484.0,95451.0,2.45881732]
[1735778827034,0.00058191,95484.0,95451.0,2.47832684]
[1735778827237,0.00058191,95484.0,95451.0,2.58231316]
[1735778827649,4e-05,95485.0,95451.0,2.21770976]
[1735778827650,0.0774,95475.0,95451.0,2.21770976]
[1735778827860,0.00062191,95485.0,95451.0,2.22670976]
[1735778828031,0.1,95483.0,95451.0,2.27050976]
[1735778828281,0.15,95476.0,95451.0,2.26750976]
[1735778828487,0.0774,95463.0,95451.0,1.36779244]
[1735778828690,0.0774,95463.0,95451.0,1.36179244]